fUST/lending_fUST_20241223
["ID","MTS","AMOUNT","RATE_DAILY","PERIOD"]
[346399178,1734940251114,-500.0,0.00013698,2]
[346399180,1734940251123,-502.50240917,0.00013698,2]
[346399183,1734940251133,-500.0,0.00013698,2]
[346399185,1734940251142,-500.0,0.00013698,2]
[346399187,1734940251151,-500.0,0.00013698,2]
[346399189,1734940251160,-500.0,0.00013698,2]
[346399191,1734940251170,-500.0,0.00013698,2]
[346399193,1734940251179,-500.0,0.00013698,2]
[346399195,1734940251188,-500.0,0.00013698,2]
[346399197,1734940251197,-500.0,0.00013698,2]
[346399198,1734940251206,-500.0,0.00013698,2]
[346399200,1734940251215,-507.59360303,0.00013698,2]
[346399203,1734940251225,-500.0,0.00013698,2]
[346399205,1734940251234,-500.0,0.00013698,2]
[346399206,1734940251243,-500.0,0.00013698,2]
[346399208,1734940251252,-500.0,0.00013698,2]
[346399210,1734940251261,-6054.3,0.00013698,2]
[346399212,1734940251271,-151.0,0.00013698,2]
[346399215,1734940251282,-500.0,0.00013698,2]
[346399217,1734940251291,-151.0,0.00013698,2]
[346399219,1734940251300,-151.0,0.00013698,2]
[346399221,1734940251309,-151.0,0.00013698,2]
[346399223,1734940251318,-500.0,0.00013698,2]
[346399225,1734940251327,-151.0,0.00013698,2]
[346399227,1734940251336,-682.37,0.00013698,2]
[346399229,1734940251350,-268.797254,0.00013698,2]
[346399231,1734940251359,-500.0,0.00013698,2]
[346399233,1734940251368,-500.0,0.00013698,2]
[346399235,1734940251377,-500.0,0.00013698,2]
[346399237,1734940251388,-500.0,0.00013698,2]
[346399239,1734940251397,-500.0,0.00013698,2]
[346399241,1734940251406,-500.0,0.00013698,2]
[346399243,1734940251415,-502.324131,0.00013698,2]
[346399245,1734940251424,-500.0,0.00013698,2]
[346399247,1734940251434,-500.0,0.00013698,2]
[346399249,1734940251443,-9172.76,0.00013698,2]
[346399251,1734940251452,-500.0,0.00013698,2]
[346399253,1734940251461,-9172.76,0.00013698,2]
[346399255,1734940251470,-9172.76,0.00013698,2]
[346399257,1734940251480,-9172.76,0.00013698,2]
[346399259,1734940251489,-9172.76,0.00013698,2]
[346399261,1734940251498,-9172.76,0.00013698,2]
[346399263,1734940251507,-9172.76,0.00013698,2]
[346399265,1734940251516,-9172.76,0.00013698,2]
[346399267,1734940251526,-9172.76,0.00013698,2]
[346399269,1734940251535,-500.0,0.00013698,2]
[346399271,1734940251544,-9172.76,0.00013698,2]
[346399273,1734940251553,-9172.76,0.00013698,2]
[346399275,1734940251562,-9172.76,0.00013698,2]
[346399277,1734940251571,-9172.76,0.00013698,2]
[346399279,1734940251581,-9172.76,0.00013698,2]
[346399281,1734940251590,-9172.76,0.00013698,2]
[346399283,1734940251600,-9172.76,0.00013698,2]
[346399285,1734940251609,-501.55302723,0.00013698,2]
[346399287,1734940251618,-9172.76,0.00013698,2]
[346399289,1734940251627,-9172.76,0.00013698,2]
[346399291,1734940251636,-500.0,0.00013698,2]
[346399293,1734940251645,-500.0,0.00013698,2]
[346399295,1734940251655,-9172.76,0.00013698,2]
[346399298,1734940251665,-9172.76,0.00013698,2]
[346399299,1734940251674,-9172.76,0.00013698,2]
[346399302,1734940251683,-9172.76,0.00013698,2]
[346399304,1734940251692,-9172.76,0.00013698,2]
[346399306,1734940251702,-9172.79015923,0.00013698,2]
[346399308,1734940251711,-500.0,0.00013698,2]
[346399310,1734940251721,-549.28737168,0.00013698,2]
[346399312,1734940251730,-500.0,0.00013698,2]
[346399314,1734940251739,-500.0,0.00013698,2]
[346399316,1734940251748,-500.0,0.00013698,2]
[346399318,1734940251757,-500.0,0.00013698,2]
[346399320,1734940251766,-500.0,0.00013698,2]
[346399322,1734940251776,-500.0,0.00013698,2]
[346399324,1734940251785,-502.97772434,0.00013698,2]
[346399326,1734940251795,-500.8093309,0.00013698,2]
[346399328,1734940251804,-500.0,0.00013698,2]
[346399330,1734940251813,-867.05,0.00013698,2]
[346399332,1734940251822,-500.0,0.00013698,2]
[346399334,1734940251831,-500.0,0.00013698,2]
[346399336,1734940251840,-500.0,0.00013698,2]
[346399338,1734940251848,-500.0,0.00013698,2]
[346399340,1734940251857,-500.0,0.00013698,2]
[346399342,1734940251867,-500.0,0.00013698,2]
[346399344,1734940251876,-500.0,0.00013698,2]
[346399346,1734940251886,-500.0,0.00013698,2]
[346399348,1734940251895,-500.0,0.00013698,2]
[346399350,1734940251904,-360.47516948,0.00013698,2]
[346399352,1734940251913,-500.0,0.00013698,2]
[346399354,1734940251922,-1815.43,0.00013698,2]
[346399356,1734940251932,-500.0,0.00013698,2]
[346399358,1734940251941,-322.74186551,0.00013698,2]
[346399360,1734940251950,-11074.19,0.00013698,2]
[346399362,1734940251959,-500.0,0.00013698,2]
[346399364,1734940251968,-500.0,0.00013698,2]
[346399366,1734940251977,-500.0,0.00013698,2]
[346399368,1734940251987,-500.0,0.00013698,2]
[346399370,1734940251996,-500.0,0.00013698,2]
[346399372,1734940252006,-695.08,0.00013698,2]
[346399374,1734940252015,-500.0,0.00013698,2]
[346399376,1734940252026,-500.0,0.00013698,2]
[346399378,1734940252035,-500.0,0.00013698,2]
[346399380,1734940252045,-237.9676526,0.00013698,2]
[346399382,1734940252054,-500.0,0.00013698,2]
[346399384,1734940252063,-500.0,0.00013698,2]
[346399386,1734940252072,-500.0,0.00013698,2]
[346399388,1734940252082,-1482.79,0.00013698,2]
[346399390,1734940252091,-313.42146622,0.00013698,2]
[346399392,1734940252100,-500.0,0.00013698,2]
[346399394,1734940252110,-500.0,0.00013698,2]
[346399396,1734940252120,-500.0,0.00013698,2]
[346399398,1734940252129,-386.635386,0.00013698,2]
[346399400,1734940252140,-386.635386,0.00013698,2]
[346399402,1734940252149,-4938.41,0.00013698,2]
[346399404,1734940252158,-386.635386,0.00013698,2]
[346399406,1734940252167,-386.635386,0.00013698,2]
[346399408,1734940252176,-500.0,0.00013698,2]
[346399410,1734940252186,-500.0,0.00013698,2]
[346399412,1734940252195,-502.59625535,0.00013698,2]
[346399414,1734940252204,-500.0,0.00013698,2]
[346399416,1734940252213,-890.52,0.00013698,2]
[346399418,1734940252223,-386.635386,0.00013698,2]
[346399420,1734940252232,-386.635386,0.00013698,2]
[346399422,1734940252241,-500.0,0.00013698,2]
[346399424,1734940252250,-386.635386,0.00013698,2]
[346399426,1734940252259,-1090.52,0.00013698,2]
[346399428,1734940252269,-386.635386,0.00013698,2]
[346399430,1734940252278,-1763.61,0.00013698,2]
[346399432,1734940252287,-386.635386,0.00013698,2]
[346399434,1734940252296,-386.635386,0.00013698,2]
[346399436,1734940252304,-500.0,0.00013698,2]
[346399438,1734940252313,-500.0,0.00013698,2]
[346399440,1734940252323,-386.635386,0.00013698,2]
[346399442,1734940252332,-500.0,0.00013698,2]
[346399444,1734940252344,-500.0,0.00013698,2]
[346399446,1734940252354,-386.635386,0.00013698,2]
[346399448,1734940252363,-500.0,0.00013698,2]
[346399450,1734940252372,-386.635386,0.00013698,2]
[346399452,1734940252381,-500.0,0.00013698,2]
[346399454,1734940252390,-386.635386,0.00013698,2]
[346399456,1734940252400,-386.635386,0.00013698,2]
[346399458,1734940252410,-386.635386,0.00013698,2]
[346399460,1734940252419,-386.635386,0.00013698,2]
[346399462,1734940252428,-386.635386,0.00013698,2]
[346399464,1734940252437,-386.635386,0.00013698,2]
[346399465,1734940252446,-500.0,0.00013698,2]
[346399466,1734940252455,-386.635385,0.00013698,2]
[346399467,1734940252463,-500.0,0.00013698,2]
[346399468,1734940252472,-500.0,0.00013698,2]
[346399469,1734940252481,-500.0,0.00013698,2]
[346399470,1734940252490,-784.51,0.00013698,2]
[346399471,1734940252499,-671.15,0.00013698,2]
[346399472,1734940252508,-500.0,0.00013698,2]
[346399473,1734940252517,-500.0,0.00013698,2]
[346399474,1734940252528,-500.0,0.00013698,2]
[346399475,1734940252540,-1181.45,0.00013698,2]
[346399476,1734940252549,-500.0,0.00013698,2]
[346399477,1734940252559,-1107.75,0.00013698,2]
[346399478,1734940252568,-502.23742165,0.00013698,2]
[346399479,1734940252577,-608.11,0.00013698,2]
[346399480,1734940252586,-3623.51,0.00013698,2]
[346399481,1734940252595,-502.87740985,0.00013698,2]
[346399483,1734940252605,-500.0,0.00013698,2]
[346399485,1734940252614,-500.0,0.00013698,2]
[346399487,1734940252623,-500.0,0.00013698,2]
[346399489,1734940252632,-500.0,0.00013698,2]
[346399491,1734940252641,-500.0,0.00013698,2]
[346399493,1734940252651,-614.32004,0.00013698,2]
[346399495,1734940252660,-500.0,0.00013698,2]
[346399497,1734940252669,-614.32004,0.00013698,2]
[346399499,1734940252678,-500.0,0.00013698,2]
[346399501,1734940252688,-500.0,0.00013698,2]
[346399503,1734940252697,-614.32004,0.00013698,2]
[346399505,1734940252706,-2349.04,0.00013698,2]
[346399507,1734940252715,-614.32004,0.00013698,2]
[346399509,1734940252725,-614.32004,0.00013698,2]
[346399511,1734940252734,-614.32004,0.00013698,2]
[346399513,1734940252743,-614.32004,0.00013698,2]
[346399515,1734940252752,-614.32004,0.00013698,2]
[346399517,1734940252761,-500.0,0.00013698,2]
[346399519,1734940252771,-614.32004,0.00013698,2]
[346399521,1734940252780,-614.32004,0.00013698,2]
[346399523,1734940252789,-614.32004,0.00013698,2]
[346399525,1734940252799,-1677.64,0.00013698,2]
[346399527,1734940252808,-614.32004,0.00013698,2]
[346399529,1734940252817,-614.32004,0.00013698,2]
[346399531,1734940252827,-614.32004,0.00013698,2]
[346399533,1734940252836,-500.0,0.00013698,2]
[346399535,1734940252845,-837.93,0.00013698,2]
[346399537,1734940252854,-614.32004,0.00013698,2]
[346399539,1734940252864,-500.0,0.00013698,2]
[346399541,1734940252874,-614.32004,0.00013698,2]
[346399543,1734940252883,-915.72,0.00013698,2]
[346399545,1734940252892,-614.32004,0.00013698,2]
[346399547,1734940252902,-614.32004,0.00013698,2]
[346399549,1734940252912,-614.32004,0.00013698,2]
[346399551,1734940252921,-500.0,0.00013698,2]
[346399553,1734940252931,-614.32005,0.00013698,2]
[346399555,1734940252940,-500.0,0.00013698,2]
[346399557,1734940252950,-500.0,0.00013698,2]
[346399559,1734940252959,-500.0,0.00013698,2]
[346399561,1734940252968,-500.0,0.00013698,2]
[346399563,1734940252977,-500.0,0.00013698,2]
[346399565,1734940252987,-500.0,0.00013698,2]
[346399567,1734940252996,-2099.19,0.00013698,2]
[346399569,1734940253005,-500.0,0.00013698,2]
[346399571,1734940253015,-500.0,0.00013698,2]
[346399573,1734940253026,-500.0,0.00013698,2]
[346399575,1734940253036,-500.0,0.00013698,2]
[346399577,1734940253046,-1972.967922,0.00013699,2]
[346399579,1734940253055,-151.0,0.00013699,2]
[346399581,1734940253064,-151.0,0.00013699,2]
[346399597,1734940253198,-151.0,0.00013699,2]
[346399599,1734940253208,-151.0,0.00013699,2]
[346399601,1734940253218,-151.0,0.00013699,2]
[346399603,1734940253227,-174.028011,0.00013699,2]
[346399605,1734940253236,-21206.6668945,0.00013699,2]
[346399607,1734940253246,-1000.0,0.00013699,2]
[346399609,1734940253256,-1000.0,0.00013699,2]
[346399611,1734940253265,-1000.0,0.00013699,2]
[346399613,1734940253274,-1000.0,0.00013699,2]
[346399615,1734940253283,-1000.0,0.00013699,2]
[346399617,1734940253293,-1000.0,0.00013699,2]
[346399619,1734940253302,-1000.0,0.00013699,2]
[346399621,1734940253312,-1000.0,0.00013699,2]
[346399623,1734940253321,-1000.0,0.00013699,2]
[346399625,1734940253331,-1034.573736,0.00013699,2]
[346399627,1734940253342,-151.0,0.00013699,2]
[346399629,1734940253352,-151.0,0.00013699,2]
[346399631,1734940253361,-151.0,0.00013699,2]
[346399633,1734940253371,-151.0,0.00013699,2]
[346399635,1734940253381,-349.147242,0.00013699,2]
[346399637,1734940253390,-349.147242,0.00013699,2]
[346399639,1734940253400,-151.0,0.00013699,2]
[346399641,1734940253409,-323.367614,0.00013699,2]
[346399643,1734940253421,-778.87296,0.00013699,2]
[346399645,1734940253432,-323.367614,0.00013699,2]
[346399647,1734940253441,-1004.106727,0.00013699,2]
[346399649,1734940253450,-778.87296,0.00013699,2]
[346399651,1734940253460,-1004.106727,0.00013699,2]
[346399653,1734940253469,-364.206931,0.00013699,2]
[346399655,1734940253479,-151.0,0.00013699,2]
[346399657,1734940253488,-364.206931,0.00013699,2]
[346399659,1734940253498,-532.863097,0.00013699,2]
[346399661,1734940253508,-219.421426,0.00013699,2]
[346399663,1734940253517,-219.421426,0.00013699,2]
[346399665,1734940253528,-836.30794,0.00013699,2]
[346399667,1734940253537,-836.30794,0.00013699,2]
[346399669,1734940253547,-151.0,0.00013699,2]
[346399671,1734940253556,-500.0,0.00013703,2]
[346399673,1734940253565,-170.52806889,0.00013709,2]
[346399675,1734940253574,-151.128,0.0001371,2]
[346399677,1734940253584,-2172.161,0.0001371,2]
[346399679,1734940253594,-534.0,0.0001371,2]
[346399681,1734940253603,-2361.725,0.0001371,2]
[346399683,1734940253613,-299.885848,0.00013764,2]
[346399685,1734940253622,-219.421426,0.00013772,2]
[346399687,1734940253632,-219.421426,0.00013772,2]
[346399689,1734940253641,-836.30794,0.00013772,2]
[346399691,1734940253651,-836.30794,0.00013772,2]
[346399693,1734940253660,-151.0,0.00013772,2]
[346399695,1734940253670,-178.769,0.00013795,2]
[346399697,1734940253679,-151.299,0.00013795,2]
[346399699,1734940253689,-150.0,0.00013795,2]
[346399701,1734940253699,-225.897,0.00013795,2]
[346399703,1734940253708,-352.2050668,0.000138,2]
[346399705,1734940253718,-162.89,0.00013855,2]
[346399707,1734940253727,-3591.3291711,0.00013872,2]
[346399709,1734940253737,-499.999999,0.0001388,2]
[346399712,1734940253747,-18143.35070426,0.00013899,2]
[346399713,1734940253756,-151.0,0.00013899,2]
[346399715,1734940253765,-349.147242,0.00013899,2]
[346399717,1734940253775,-349.147242,0.00013899,2]
[346399719,1734940253784,-323.367614,0.00013899,2]
[346399721,1734940253794,-323.36760454,0.00013899,2]
[346399723,1734940253803,-1004.106727,0.00013899,2]
[346399725,1734940253813,-1004.106728,0.00013899,2]
[346399727,1734940253823,-364.206931,0.00013899,2]
[346399729,1734940253833,-151.0,0.00013899,2]
[346399732,1734940253842,-364.206925,0.00013899,2]
[346399734,1734940253852,-532.863088,0.00013899,2]
[346399736,1734940253862,-500.000001,0.000139,2]
[346399738,1734940253871,-6000.0,0.000139,2]
[346399740,1734940253880,-151.0,0.000139,2]
[346399741,1734940253889,-151.0,0.000139,2]
[346399743,1734940253899,-151.0,0.000139,2]
[346399746,1734940253908,-151.0,0.000139,2]
[346399747,1734940253918,-151.0,0.000139,2]
[346399750,1734940253928,-151.0,0.000139,2]
[346399751,1734940253937,-778.87296,0.000139,2]
[346399754,1734940253947,-778.87295,0.000139,2]
[346399755,1734940253956,-601.0,0.00013952,2]
[346399757,1734940253965,-601.0,0.00013952,2]
[346399759,1734940253975,-601.0,0.00013952,2]
[346399761,1734940253985,-601.0,0.00013952,2]
[346399763,1734940253995,-601.0,0.00013952,2]
[346399766,1734940254004,-601.0,0.00013952,2]
[346399767,1734940254014,-601.0,0.00013952,2]
[346399769,1734940254024,-601.0,0.00013952,2]
[346399771,1734940254034,-601.0,0.00013952,2]
[346399773,1734940254043,-601.0,0.00013952,2]
[346399776,1734940254052,-219.421426,0.00013952,2]
[346399778,1734940254061,-219.42143,0.00013952,2]
[346399780,1734940254071,-836.30794,0.00013952,2]
[346399782,1734940254080,-836.30794499,0.00013952,2]
[346399784,1734940254089,-151.0,0.00013952,2]
[346399786,1734940254098,-1248.71949544,0.0001397,2]
[346399788,1734940254108,-500.0,0.00013972,2]
[346399790,1734940254117,-500.0,0.00013972,2]
[346399792,1734940254126,-151.0,0.00013972,2]
[346399794,1734940254135,-151.0,0.00013972,2]
[346399796,1734940254145,-500.0,0.00013972,2]
[346399798,1734940254154,-237.60436465,0.00013972,2]
[346399800,1734940254163,-582.33,0.00013972,4]
[346399802,1734940254172,-500.0,0.00013972,2]
[346399804,1734940254181,-151.0,0.00013972,2]
[346399806,1734940254191,-151.0,0.00013972,2]
[346399808,1734940254200,-151.0,0.00013972,2]
[346399810,1734940254209,-151.0,0.00013972,2]
[346399812,1734940254218,-151.0,0.00013972,2]
[346399814,1734940254227,-500.0,0.00013972,2]
[346399816,1734940254237,-331.642248,0.00013972,2]
[346399818,1734940254246,-331.642248,0.00013972,2]
[346399820,1734940254255,-331.642248,0.00013972,2]
[346399822,1734940254265,-331.642243,0.00013972,2]
[346399824,1734940254274,-511.73,0.00013972,2]
[346399826,1734940254284,-151.0,0.00013972,2]
[346399828,1734940254293,-151.0,0.00013972,2]
[346399830,1734940254302,-151.0,0.00013972,2]
[346399832,1734940254311,-151.0,0.00013972,2]
[346399834,1734940254320,-186.212149,0.00013972,2]
[346399836,1734940254329,-205.88,0.00013972,2]
[346399838,1734940254341,-611.42,0.00013972,2]
[346399840,1734940254351,-500.0,0.00013972,2]
[346399842,1734940254360,-500.0,0.00013972,2]
[346399844,1734940254369,-151.0,0.00013972,2]
[346399846,1734940254378,-151.0,0.00013972,2]
[346399848,1734940254387,-151.0,0.00013972,2]
[346399850,1734940254396,-151.0,0.00013972,2]
[346399852,1734940254405,-501.47716561,0.00013972,2]
[346399854,1734940254415,-500.0,0.00013972,2]
[346399856,1734940254424,-502.48337551,0.00013972,2]
[346399858,1734940254434,-500.0,0.00013972,2]
[346399860,1734940254443,-355.79586828,0.00013972,2]
[346399862,1734940254452,-500.0,0.00013972,2]
[346399864,1734940254461,-217.30518613,0.00013972,2]
[346399866,1734940254471,-500.0,0.00013972,2]
[346399868,1734940254480,-500.0,0.00013972,2]
[346399870,1734940254491,-501.73257682,0.00013972,2]
[346399872,1734940254500,-500.0,0.00013972,2]
[346399874,1734940254509,-500.0,0.00013972,2]
[346399876,1734940254517,-501.65321996,0.00013972,2]
[346399878,1734940254527,-500.0,0.00013972,2]
[346399880,1734940254536,-500.0,0.00013972,2]
[346399882,1734940254545,-500.0,0.00013972,2]
[346399884,1734940254554,-500.0,0.00013972,2]
[346399886,1734940254564,-501.02909847,0.00013972,2]
[346399888,1734940254573,-349.147242,0.00013972,2]
[346399890,1734940254582,-349.147242,0.00013972,2]
[346399893,1734940254598,-500.0,0.00013972,2]
[346399895,1734940254607,-349.147242,0.00013972,2]
[346399897,1734940254616,-349.147242,0.00013972,2]
[346399899,1734940254627,-349.147242,0.00013972,2]
[346399901,1734940254636,-500.0,0.00013972,2]
[346399903,1734940254645,-349.147242,0.00013972,2]
[346399905,1734940254654,-349.147242,0.00013972,2]
[346399907,1734940254663,-500.0,0.00013972,2]
[346399909,1734940254672,-349.147248,0.00013972,2]
[346399911,1734940254681,-500.0,0.00013972,2]
[346399913,1734940254690,-500.0,0.00013972,2]
[346399915,1734940254700,-500.0,0.00013972,2]
[346399917,1734940254709,-500.0,0.00013972,2]
[346399919,1734940254718,-500.0,0.00013972,2]
[346399921,1734940254727,-594.38,0.00013972,2]
[346399923,1734940254736,-500.0,0.00013972,2]
[346399924,1734940254745,-501.32653434,0.00013972,2]
[346399927,1734940254755,-502.58970426,0.00013972,2]
[346399928,1734940254764,-500.0,0.00013972,2]
[346399931,1734940254774,-500.0,0.00013972,2]
[346399933,1734940254783,-501.32887345,0.00013972,2]
[346399935,1734940254792,-500.0,0.00013972,2]
[346399937,1734940254802,-500.0,0.00013972,2]
[346399939,1734940254812,-500.0,0.00013972,2]
[346399941,1734940254821,-500.0,0.00013972,2]
[346399943,1734940254830,-503.37256293,0.00013972,2]
[346399945,1734940254839,-501.60380055,0.00013972,2]
[346399947,1734940254848,-500.0,0.00013972,2]
[346399949,1734940254857,-500.0,0.00013972,2]
[346399951,1734940254867,-501.79047327,0.00013972,2]
[346399953,1734940254876,-505.03903745,0.00013972,2]
[346399955,1734940254885,-500.0,0.00013972,2]
[346399957,1734940254894,-501.98295497,0.00013972,2]
[346399959,1734940254903,-500.0,0.00013972,2]
[346399961,1734940254913,-500.0,0.00013972,2]
[346399963,1734940254922,-500.0,0.00013972,2]
[346399965,1734940254931,-428.59508887,0.00013972,2]
[346399967,1734940254940,-500.0,0.00013972,2]
[346399969,1734940254949,-194.87913801,0.00013972,2]
[346399971,1734940254958,-500.0,0.00013972,2]
[346399973,1734940254967,-501.90122122,0.00013972,2]
[346399975,1734940254976,-500.0,0.00013972,2]
[346399977,1734940254986,-503.09599382,0.00013972,2]
[346399978,1734940254995,-502.83494229,0.00013972,2]
[346399981,1734940255005,-500.0,0.00013972,2]
[346399983,1734940255015,-501.25840144,0.00013972,2]
[346399985,1734940255025,-500.0,0.00013972,2]
[346399987,1734940255034,-501.96938278,0.00013972,2]
[346399988,1734940255043,-504.07813389,0.00013972,2]
[346399990,1734940255052,-501.42343876,0.00013972,2]
[346399993,1734940255062,-500.0,0.00013972,2]
[346399994,1734940255071,-500.91043585,0.00013972,2]
[346399997,1734940255080,-501.97236093,0.00013972,2]
[346399999,1734940255090,-500.0,0.00013972,2]
[346400001,1734940255099,-501.94438172,0.00013972,2]
[346400003,1734940255108,-502.30192304,0.00013972,2]
[346400005,1734940255117,-503.06677639,0.00013972,2]
[346400007,1734940255126,-311.78618157,0.00013972,2]
[346400008,1734940255135,-500.0,0.00013972,2]
[346400011,1734940255144,-500.0,0.00013972,2]
[346400012,1734940255153,-500.0,0.00013972,2]
[346400015,1734940255163,-500.0,0.00013972,2]
[346400017,1734940255172,-500.0,0.00013972,2]
[346400018,1734940255182,-500.0,0.00013972,2]
[346400020,1734940255191,-504.00923443,0.00013972,2]
[346400022,1734940255200,-502.07554,0.00013972,2]
[346400024,1734940255210,-502.43794545,0.00013972,2]
[346400026,1734940255219,-501.45605575,0.00013972,2]
[346400029,1734940255228,-500.0,0.00013972,2]
[346400031,1734940255239,-603.8,0.00013972,2]
[346400033,1734940255248,-500.0,0.00013972,2]
[346400035,1734940255258,-501.9130706,0.00013972,2]
[346400037,1734940255267,-500.0,0.00013972,2]
[346400039,1734940255277,-501.55975099,0.00013972,2]
[346400041,1734940255287,-501.9318228,0.00013972,2]
[346400043,1734940255297,-500.0,0.00013972,2]
[346400045,1734940255306,-500.0,0.00013972,2]
[346400047,1734940255315,-502.73923988,0.00013972,2]
[346400049,1734940255324,-500.0,0.00013972,2]
[346400051,1734940255333,-500.0,0.00013972,2]
[346400053,1734940255346,-491.98743606,0.00013972,2]
[346400055,1734940255355,-500.0,0.00013972,2]
[346400057,1734940255364,-501.31353054,0.00013972,2]
[346400059,1734940255373,-502.55660147,0.00013972,2]
[346400061,1734940255384,-501.00060628,0.00013972,2]
[346400063,1734940255393,-501.83387537,0.00013972,2]
[346400065,1734940255402,-502.57332247,0.00013972,2]
[346400067,1734940255411,-869.42,0.00013972,2]
[346400069,1734940255420,-502.29813148,0.00013972,2]
[346400071,1734940255430,-500.0,0.00013972,2]
[346400073,1734940255439,-505.07273976,0.00013972,2]
[346400075,1734940255448,-500.0,0.00013972,2]
[346400077,1734940255458,-500.0,0.00013972,2]
[346400079,1734940255467,-506.14420014,0.00013972,2]
[346400080,1734940255476,-505.5883751,0.00013972,2]
[346400081,1734940255486,-500.0,0.00013972,2]
[346400082,1734940255495,-503.69378914,0.00013972,2]
[346400083,1734940255504,-500.0,0.00013972,2]
[346400084,1734940255513,-502.51035047,0.00013972,2]
[346400085,1734940255523,-500.0,0.00013972,2]
[346400086,1734940255534,-501.47704821,0.00013972,2]
[346400087,1734940255544,-500.0,0.00013972,2]
[346400088,1734940255553,-501.85536329,0.00013972,2]
[346400089,1734940255563,-500.0,0.00013972,2]
[346400090,1734940255572,-500.0,0.00013972,2]
[346400091,1734940255581,-265.56351548,0.00013972,2]
[346400092,1734940255591,-500.0,0.00013972,2]
[346400093,1734940255600,-500.0,0.00013972,2]
[346400094,1734940255610,-604.45,0.00013972,2]
[346400096,1734940255620,-505.44858851,0.00013972,2]
[346400098,1734940255629,-532.2,0.00013972,2]
[346400100,1734940255638,-502.31581988,0.00013972,2]
[346400102,1734940255647,-501.5470531,0.00013972,2]
[346400104,1734940255656,-551.22,0.00013972,2]
[346400106,1734940255665,-502.07183632,0.00013972,2]
[346400108,1734940255675,-500.0,0.00013972,2]
[346400110,1734940255684,-500.0,0.00013972,2]
[346400112,1734940255694,-501.78865278,0.00013972,2]
[346400114,1734940255703,-500.0,0.00013972,2]
[346400116,1734940255712,-554.6,0.00013972,2]
[346400118,1734940255721,-503.37442402,0.00013972,2]
[346400120,1734940255731,-503.43070139,0.00013972,2]
[346400122,1734940255740,-821.02,0.00013972,2]
[346400124,1734940255750,-500.0,0.00013972,2]
[346400126,1734940255759,-500.0,0.00013972,2]
[346400128,1734940255769,-500.0,0.00013972,2]
[346400130,1734940255780,-500.0,0.00013972,2]
[346400133,1734940255789,-502.68230553,0.00013972,2]
[346400134,1734940255798,-502.11809997,0.00013972,2]
[346400136,1734940255808,-642.62519808,0.00013972,2]
[346400150,1734940255914,-1045.81,0.00013972,2]
[346400152,1734940255935,-501.6740948,0.00013972,2]
[346400154,1734940255945,-500.0,0.00013972,2]
[346400156,1734940255954,-500.0,0.00013972,2]
[346400158,1734940255963,-500.0,0.00013972,2]
[346400160,1734940255972,-1511.08,0.00013972,2]
[346400162,1734940255982,-500.0,0.00013972,2]
[346400164,1734940255992,-500.0,0.00013972,2]
[346400166,1734940256001,-502.52723413,0.00013972,2]
[346400168,1734940256010,-500.0,0.00013972,2]
[346400170,1734940256019,-620.980716,0.00013972,2]
[346400172,1734940256028,-500.0,0.00013972,2]
[346400174,1734940256038,-500.0,0.00013972,2]